bitfinex/quotes_SOLUSD_20241210
["timestamp","ask_amount","ask_price","bid_price","bid_amount"]
[1733844701652,23.776884,212.17,211.97,37.63430083]
[1733844701850,23.776884,212.15,211.97,37.63430083]
[1733844702051,23.776884,212.13,212.01,37.63430083]
[1733844702264,0.88393331,212.12,211.97,349.63430083]
[1733844702480,0.88408247,212.21,212.01,37.63430083]
[1733844702662,23.776884,212.2,212.01,37.63430083]
[1733844702862,23.776884,212.18,212.03,37.63430083]
[1733844703087,23.776884,212.18,212.07,37.63430083]
[1733844703252,11.7776,212.27,212.06,37.63430083]
[1733844703253,0.88368851,212.21,212.06,37.63430083]
[1733844703456,0.8837785,212.26,212.1,37.63430083]
[1733844703690,0.88358538,212.31,212.12,37.63430083]
[1733844703857,2.84790541,212.27,212.1,37.63430083]
[1733844704059,2.84790541,212.27,212.13,20.0]
[1733844704254,2.84790541,212.27,212.14,37.63430083]
[1733844704483,11.7724,212.36,212.19,20.0]
[1733844704687,0.88318597,212.4,212.2,37.63430083]
[1733844705008,3.75400134,212.4,212.2,41.7813]
[1733844705170,11.7707,212.39,212.15,37.63430083]
[1733844705369,15.0,212.36,212.06,37.63430083]
[1733844705691,0.8837117,212.35,212.12,37.63430083]
[1733844705891,0.8837117,212.35,212.16,37.63430083]
[1733844706057,0.88329075,212.38,212.22,37.63430083]
[1733844706259,0.88297093,212.48,212.28,37.63430083]
[1733844706460,15.0,212.6,212.32,37.63430083]
[1733844706704,12.64234397,212.59,212.38,37.63430083]
[1733844706860,12.64234397,212.59,212.42,37.63430083]
[1733844707061,0.88239343,212.58,212.44,37.63430083]
[1733844707291,0.88239343,212.58,212.42,37.63430083]
[1733844707584,0.88239343,212.58,212.37,45.0]
[1733844707585,0.88239343,212.58,212.44,37.63430083]
[1733844707803,0.88207251,212.63,212.48,37.63430083]
[1733844707973,15.4045,212.78,212.52,37.63430083]
[1733844707974,11.7546,212.69,212.52,37.63430083]
[1733844708302,2.85953771,212.67,212.46,37.63430083]
[1733844708592,15.88210464,212.66,212.4,37.63430083]
[1733844708808,15.88210464,212.66,212.35,30.0]
[1733844708809,11.7564,212.65,212.36,0.70586049]
[1733844708970,0.88222435,212.64,212.44,37.63430083]
[1733844709171,0.88222435,212.64,212.46,312.0]
[1733844709494,2.85953771,212.67,212.46,312.0]
[1733844709495,3.74170462,212.67,212.48,37.63430083]
[1733844709660,11.7558,212.66,212.49,0.70548741]
[1733844709871,0.88197567,212.65,212.46,37.63430083]
[1733844710200,2.85953771,212.67,212.52,37.63430083]
[1733844710361,0.8817655,212.66,212.54,37.63430083]
[1733844710566,11.7507,212.76,212.6,37.63430083]
[1733844710799,11.7514,212.74,212.58,37.63430083]
[1733844711007,11.7514,212.74,212.55,0.70547651]
[1733844711008,0.8816748,212.81,212.62,37.63430083]
[1733844711282,12.62755936,212.84,212.64,37.63430083]
[1733844711471,12.62755936,212.84,212.62,37.63430083]
[1733844711691,2.83093721,212.8,212.62,37.63430083]
[1733844711893,0.8813462,212.79,212.6,37.63430083]
[1733844712061,0.8813462,212.79,212.64,37.63430083]
[1733844712266,0.8813462,212.79,212.62,37.63430083]
[1733844712572,11.7467,212.83,212.64,37.63430083]
[1733844712909,0.5178835,212.85,212.69,37.63430083]
[1733844713490,0.88103462,212.84,212.69,37.63430083]
[1733844714167,0.5178835,212.85,212.73,37.63430083]
[1733844714404,0.5178835,212.85,212.74,37.63430083]
[1733844714602,0.5178835,212.85,212.73,37.63430083]
[1733844714832,0.5178835,212.85,212.71,20.0]
[1733844714833,0.5178835,212.85,212.77,37.63430083]
[1733844715102,0.5178835,212.85,212.67,37.63430083]
[1733844715406,0.5178835,212.85,212.69,37.63430083]
[1733844715571,0.88110748,212.84,212.69,37.63430083]
[1733844715979,0.5178835,212.85,212.73,37.63430083]
[1733844716186,0.5178835,212.85,212.75,37.63430083]
[1733844716775,0.5178835,212.85,212.74,0.7047136]
[1733844716988,0.5178835,212.85,212.73,37.63430083]
[1733844717503,0.5178835,212.85,212.71,37.63430083]
[1733844717894,0.5178835,212.85,212.73,37.63430083]
[1733844718079,0.5178835,212.85,212.75,37.63430083]
[1733844718400,0.5178835,212.85,212.72,37.63430083]
[1733844718705,11.7459,212.84,212.68,37.63430083]
[1733844719005,0.88111906,212.83,212.68,37.63430083]
[1733844719213,0.88105864,212.82,212.66,37.63430083]
[1733844719384,23.776884,212.81,212.67,0.70498832]
[1733844719595,0.88113193,212.8,212.66,37.63430083]
[1733844719908,23.776884,212.79,212.64,37.63430083]
[1733844720436,0.5178835,212.85,212.72,37.63430083]
[1733844720583,0.5178835,212.85,212.8,37.63430083]
[1733844720781,0.5178835,212.85,212.65,26.7558]
[1733844720782,0.5178835,212.85,212.84,37.63430083]
[1733844721589,0.5178835,212.85,212.84,67.63430083]
[1733844721790,11.7315,213.1,212.84,68.33854857]
[1733844722104,0.88027079,213.09,212.92,37.63430083]
[1733844722298,2.88721083,213.06,212.92,37.63430083]
[1733844722611,0.88027079,213.09,212.94,37.63430083]
[1733844722829,11.7326,213.08,212.94,312.0]
[1733844723120,0.88024365,213.07,212.94,312.0]
[1733844723337,0.88024365,213.07,212.95,0.70411667]
[1733844723484,0.88009435,213.12,212.96,37.63430083]
[1733844723687,11.731,213.11,212.96,37.63430083]
[1733844723921,11.6110061,213.11,212.95,0.70411667]
[1733844724132,2.85579872,213.1,212.89,0.70403404]
[1733844724293,2.85579872,213.1,212.86,37.63430083]
[1733844724294,11.7321,213.09,212.86,37.63430083]
[1733844724616,20.0,213.05,212.82,37.63430083]
[1733844724929,20.0,213.01,212.86,37.63430083]
[1733844725087,23.776884,213.04,212.88,37.63430083]
[1733844725288,23.776884,212.94,212.84,37.63430083]
[1733844725516,23.776884,212.94,212.82,37.63430083]
[1733844725702,6.20571173,213.02,212.78,30.0]
[1733844725906,23.776884,212.97,212.88,37.63430083]
[1733844726107,0.70835175,213.04,212.9,37.63430083]
[1733844726323,11.7332,213.07,212.92,349.63430083]
[1733844726517,6.20571173,213.01,212.92,312.0]
[1733844726819,6.20571173,212.99,212.88,37.63430083]
[1733844727059,6.20571173,213.0,212.89,0.70429181]
[1733844727326,6.91406348,213.06,212.89,0.70429181]
[1733844727642,6.91406348,213.06,212.83,11.746]
[1733844727643,6.20571173,212.94,212.8,37.63430083]
[1733844727925,6.20571173,212.94,212.68,15.0]
[1733844727926,6.20571173,212.88,212.72,37.63430083]
[1733844728125,23.776884,212.77,212.66,37.63430083]
[1733844728292,23.776884,212.77,212.67,0.70498688]
[1733844728620,6.20571173,212.73,212.67,0.70498688]
[1733844728831,23.776884,212.74,212.64,38.3393372]
[1733844729115,2.77051253,212.9,212.72,37.63430083]
[1733844729328,2.77051253,212.9,212.78,37.63430083]
[1733844729528,2.77051253,212.9,212.82,37.63430083]
[1733844729695,6.91406348,213.03,212.86,37.63430083]
[1733844729896,6.20571173,213.03,212.98,312.0]
[1733844730097,6.20571173,213.1,212.98,289.15285466]
[1733844730335,0.70835175,213.11,212.98,37.63430083]
[1733844730619,6.20571173,213.13,212.9,30.0]
[1733844730620,6.20571173,213.1,213.0,37.63430083]
[1733844730862,0.855196,213.16,213.0,37.63430083]
[1733844730863,6.20571173,213.08,213.0,37.63430083]
[1733844730991,6.20571173,213.14,213.0,37.63430083]
[1733844731189,6.20571173,213.14,213.08,312.0]
[1733844731445,0.855196,213.16,213.08,312.0]
[1733844731603,6.20571173,213.15,213.08,312.0]
[1733844731928,0.855196,213.16,213.09,0.70376002]
[1733844732103,0.855196,213.16,213.12,37.63430083]
[1733844732294,0.855196,213.16,213.14,37.63430083]
[1733844732498,0.855196,213.16,213.15,0.70328638]
[1733844732721,0.855196,213.16,213.15,37.63430083]
[1733844733024,0.855196,213.16,213.15,37.98069248]
[1733844733616,6.20571173,213.36,213.18,20.0]
[1733844733804,6.205712,213.44,213.16,11.7282]
[1733844733805,7.08459664,213.4,213.28,37.63430083]
[1733844734129,6.20571173,213.37,213.26,37.63430083]
[1733844734305,6.20571173,213.37,213.24,37.63430083]
[1733844734511,6.20571173,213.34,213.26,37.63430083]
[1733844734722,6.20571173,213.32,213.26,312.0]
[1733844734953,6.20571173,213.35,213.26,312.0]
[1733844735135,6.20571173,213.36,213.26,312.0]
[1733844735326,7.08469361,213.4,213.27,0.34601863]
[1733844735642,0.855196,213.48,213.27,0.34601863]
[1733844735643,6.20571173,213.44,213.32,37.63430083]
[1733844735864,6.20571173,213.46,213.34,37.63430083]
[1733844736046,6.20571173,213.47,213.34,37.63430083]
[1733844736223,6.20571173,213.44,213.35,0.3453258]
[1733844736410,6.20571173,213.44,213.32,37.63430083]
[1733844736613,6.20571173,213.46,213.33,0.34549936]
[1733844736910,6.20571173,213.44,213.32,37.63430083]
[1733844737114,6.20571173,213.38,213.25,0.34541733]
[1733844737342,35.987496,213.48,213.15,12.913]
[1733844737343,6.20571173,213.27,213.15,12.913]
[1733844737652,6.20571173,213.29,213.2,37.63430083]
[1733844737812,23.776884,213.27,213.2,37.63430083]
[1733844738022,6.20571173,213.33,213.24,37.63430083]
[1733844738322,23.776884,213.35,213.25,0.34655443]
[1733844738523,6.20571173,213.41,213.29,37.41233724]
[1733844738726,7.08438546,213.42,213.31,37.41233724]
[1733844738947,6.20571173,213.42,213.27,37.41233724]
[1733844739120,6.20571173,213.36,213.25,37.41233724]
[1733844739315,0.87862341,213.41,213.25,37.41233724]
[1733844739316,7.08433514,213.41,213.26,0.34609024]
[1733844739533,2.85889255,213.45,213.32,37.41233724]
[1733844739839,0.855196,213.48,213.38,37.41233724]
[1733844740044,0.855196,213.48,213.4,37.41233724]
[1733844740411,0.855196,213.48,213.38,37.41233724]
[1733844740812,6.20571173,213.46,213.39,0.34487037]
[1733844741033,6.20571173,213.44,213.34,37.41233724]
[1733844741311,6.20571173,213.46,213.34,37.75767946]
[1733844741529,6.20571173,213.44,213.34,0.34534222]
[1733844741731,6.20571173,213.39,213.28,37.75771178]
[1733844742230,6.20571173,213.42,213.28,37.75771178]
[1733844742432,6.20571173,213.35,213.24,37.41233724]
[1733844742630,23.776884,213.34,213.25,0.34600748]
[1733844742933,6.20571173,213.42,213.28,37.41233724]
[1733844743129,6.20571173,213.42,213.21,18.766073]
[1733844743130,20.0,213.38,213.21,18.766073]
[1733844743345,6.20571173,213.24,213.21,18.766073]
[1733844743542,23.776884,213.21,213.11,37.41233724]
[1733844743743,6.20571173,213.32,213.18,37.41233724]
[1733844743949,29.98259573,213.3,213.18,37.41233724]
[1733844744226,0.87910278,213.4,213.28,37.41233724]
[1733844744429,0.855196,213.48,213.4,37.41233724]
[1733844744630,0.855196,213.48,213.44,37.41233724]
[1733844744852,0.855196,213.48,213.41,0.34491106]
[1733844744853,0.855196,213.48,213.4,37.41233724]
[1733844745051,0.855196,213.48,213.41,312.0]
[1733844745249,6.20571173,213.47,213.4,37.41233724]
[1733844745460,6.20571173,213.47,213.38,37.41233724]
[1733844745760,6.20571173,213.47,213.36,37.41233724]
[1733844745935,0.855196,213.48,213.44,37.41233724]
[1733844746128,0.855196,213.48,213.42,37.41233724]
[1733844746328,0.855196,213.48,213.38,37.41233724]
[1733844746528,0.855196,213.48,213.37,0.34503931]
[1733844746529,0.855196,213.48,213.46,37.41233724]
[1733844746732,0.855196,213.48,213.44,37.41233724]
[1733844746947,0.855196,213.48,213.42,37.41233724]
[1733844747157,0.855196,213.48,213.47,37.41233724]
[1733844747335,0.855196,213.48,213.45,37.41233724]
[1733844747761,0.855196,213.48,213.46,37.3510256]
[1733844747970,0.855196,213.48,213.44,37.3510256]
[1733844748855,0.855196,213.48,213.4,0.34465603]
[1733844748856,23.776884,213.45,213.4,37.3510256]
[1733844749033,29.98259573,213.43,213.34,37.3510256]
[1733844749231,0.855196,213.48,213.28,37.3510256]
[1733844749232,23.776884,213.39,213.28,37.3510256]
[1733844749436,23.776884,213.39,213.24,37.3510256]
[1733844749437,23.776884,213.31,213.24,37.3510256]
[1733844749657,23.776884,213.31,213.22,37.3510256]
[1733844749658,6.20571173,213.29,213.22,37.3510256]
[1733844749868,29.98259573,213.31,213.19,0.34578655]
[1733844750033,26.20571173,213.28,213.16,37.3510256]
[1733844750239,6.20571173,213.23,213.16,37.3510256]
[1733844750438,6.20571173,213.21,213.16,37.3510256]
[1733844750648,20.0,213.28,213.16,37.3510256]
[1733844750649,0.87932807,213.25,213.16,37.3510256]
[1733844750941,6.20571173,213.15,213.07,0.34701801]
[1733844751140,6.20571173,213.16,213.08,37.3510256]
[1733844751339,6.20571173,213.14,213.08,37.3510256]
[1733844751638,6.20571173,213.12,213.02,37.3510256]
[1733844751837,6.20571173,213.11,213.06,37.3510256]
[1733844752039,6.20571173,213.18,213.1,37.3510256]
[1733844752263,6.20571173,213.18,213.03,0.34817566]
[1733844752264,23.776884,213.17,213.08,37.3510256]
[1733844752574,6.20571173,213.18,213.1,37.3510256]
[1733844752876,6.20571173,213.1,212.96,18.786886]
[1733844753050,24.65641905,213.17,213.06,37.3510256]
[1733844753237,23.776884,213.14,213.06,37.3510256]
[1733844753445,6.20571173,213.27,213.12,37.3510256]
[1733844753655,15.0,213.34,213.15,37.3510256]
[1733844753656,6.20571173,213.22,213.15,37.3510256]
[1733844753885,6.20571173,213.27,213.13,37.3510256]
[1733844754051,6.20571173,213.27,213.17,37.3510256]
[1733844754252,6.20571173,213.23,213.15,37.3510256]
[1733844754450,6.20571173,213.21,213.15,37.3510256]
[1733844754651,6.20571173,213.17,213.11,37.3510256]
[1733844755051,6.20571173,213.19,213.13,37.3510256]
[1733844755263,6.20571173,213.24,213.13,37.3510256]
[1733844755579,6.20571173,213.16,213.11,37.3510256]
[1733844755901,6.20571173,213.14,213.07,38.2092278]
[1733844756045,6.20571173,213.22,213.11,37.3510256]
[1733844756370,6.20571173,213.23,213.13,37.3510256]
[1733844756575,6.20571173,213.21,213.13,37.3510256]
[1733844756872,6.20571173,213.3,213.2,37.3510256]
[1733844757189,6.20571173,213.36,213.27,37.3510256]
[1733844757375,6.20571173,213.34,213.25,37.3510256]
[1733844757679,6.20571173,213.32,213.27,312.0]
[1733844757970,6.20571173,213.38,213.29,37.3510256]
[1733844758145,6.20571173,213.38,213.31,37.3510256]
[1733844758347,6.20571173,213.34,213.29,37.3510256]
[1733844758549,6.20571173,213.37,213.29,37.3510256]
[1733844758775,6.20571173,213.37,213.31,37.3510256]
[1733844759073,6.20571173,213.45,213.35,37.3510256]
[1733844759252,6.20571173,213.45,213.38,37.3510256]
[1733844759854,6.20571173,213.45,213.4,37.3510256]
[1733844760047,6.20571173,213.47,213.4,37.3510256]
[1733844760350,6.20571173,213.43,213.38,37.3510256]
[1733844760547,6.20571173,213.45,213.38,37.3510256]
[1733844760743,6.20571173,213.47,213.4,37.3510256]
[1733844760977,0.855196,213.48,213.44,37.3510256]
[1733844761178,0.855196,213.48,213.47,312.0]
[1733844762182,0.855196,213.48,213.35,37.8931]
[1733844762183,0.855196,213.48,213.46,37.3510256]
[1733844762689,0.855196,213.48,213.44,37.3510256]
[1733844762874,0.855196,213.48,213.46,37.3510256]
[1733844763574,0.855196,213.48,213.47,0.3443476]
[1733844763992,0.855196,213.48,213.46,37.3510256]
[1733844764605,0.855196,213.48,213.44,37.3510256]
[1733844764778,6.20571173,213.47,213.4,37.3510256]
[1733844765095,6.20571173,213.47,213.41,0.85683493]
[1733844765299,0.855196,213.48,213.42,37.3510256]
[1733844765473,0.855196,213.48,213.44,37.3510256]
[1733844765676,0.855196,213.48,213.43,0.34487382]
[1733844765880,0.855196,213.48,213.42,37.3510256]
[1733844766099,0.855196,213.48,213.44,37.3510256]
[1733844766315,0.855196,213.48,213.46,37.3510256]
[1733844766479,0.855196,213.48,213.47,0.34403427]
[1733844766687,0.855196,213.48,213.47,37.69505987]
[1733844766879,6.20571173,213.58,213.47,0.34403427]
[1733844767214,6.20571173,213.6,213.53,37.3510256]
[1733844767904,6.20571173,213.6,213.51,37.3510256]
[1733844768106,6.20571173,213.53,213.48,37.3510256]
[1733844769323,6.20571173,213.53,213.5,37.3510256]
[1733844769493,6.20571173,213.53,213.45,0.34423274]
[1733844769494,6.20571173,213.53,213.48,37.3510256]
[1733844769697,0.87795291,213.63,213.48,37.3510256]
[1733844769698,6.20571173,213.51,213.48,37.3510256]
[1733844770215,6.20571173,213.44,213.32,8.79428827]
[1733844770427,6.20571173,213.44,213.33,1.2023565]
[1733844770607,6.20571173,213.38,213.33,0.85715625]
[1733844770997,6.20571173,213.38,213.34,37.3510256]
[1733844771297,0.87866538,213.48,213.34,0.85711607]
[1733844771298,6.20571173,213.36,213.34,0.85711607]
[1733844771931,0.87891006,213.35,213.34,0.85711607]
[1733844772607,6.20571173,213.28,213.17,37.69738795]
[1733844773138,6.20571173,213.31,213.19,37.3510256]
[1733844773321,6.20571173,213.25,213.19,37.3510256]
[1733844773531,6.20571173,213.22,213.17,37.3510256]
[1733844773702,6.20571173,213.22,213.2,20.0]
[1733844773895,6.20571173,213.2,213.13,37.3510256]
[1733844774097,6.20571173,213.19,213.13,37.3510256]
[1733844774330,0.8790891,213.3,213.11,37.69826966]
[1733844774331,6.20571173,213.14,213.11,37.69826966]
[1733844774514,23.4353,213.36,213.06,11.7183]
[1733844774515,6.20571173,213.12,213.06,11.7183]
[1733844775004,6.20571173,213.12,213.03,37.3510256]
[1733844775225,6.20571173,213.12,213.03,349.3510256]
[1733844775731,6.20571173,213.12,213.05,37.3510256]
[1733844775906,6.20571173,213.14,213.07,37.3510256]
[1733844776146,6.20571173,213.08,213.03,37.3510256]
[1733844776369,6.20571173,213.08,213.02,0.34775056]
[1733844776569,6.20571173,212.97,212.91,37.3510256]
[1733844776873,6.20571173,212.92,212.91,0.85884713]
[1733844777084,6.20571173,212.98,212.91,38.20987273]
[1733844777371,6.20571173,213.04,212.94,37.3510256]
[1733844777564,6.20571173,213.02,212.96,37.3510256]
[1733844777874,6.20571173,212.98,212.94,37.3510256]
[1733844778040,6.20571173,213.0,212.94,37.3510256]
[1733844778441,6.20571173,212.98,212.92,37.3510256]
[1733844778664,6.20571173,213.02,212.94,37.3510256]
[1733844778869,6.20571173,213.06,212.96,37.3510256]
[1733844779046,6.20571173,213.02,212.98,37.3510256]
[1733844779253,6.20571173,213.06,212.96,37.3510256]
[1733844779873,6.20571173,213.07,212.96,37.3510256]
[1733844780103,6.20571173,212.96,212.88,37.3510256]
[1733844780303,6.20571173,212.96,212.89,0.34903646]
[1733844780509,1.7463671,213.06,212.89,0.34903646]
[1733844780510,6.20571173,213.02,212.92,37.3510256]
[1733844781013,6.20571173,213.0,212.92,37.3510256]
[1733844781295,23.4617,213.12,212.89,0.34903646]
[1733844781296,0.86623152,213.01,212.96,37.3510256]
[1733844781598,6.20571173,212.97,212.95,20.0]
[1733844781799,0.86623152,213.01,212.95,20.0]
[1733844781800,6.20571173,212.98,212.95,20.0]
[1733844781998,0.86623152,212.96,212.95,20.0]
[1733844782365,0.86623152,212.96,212.95,332.0]
[1733844782570,6.20571173,212.91,212.86,37.3510256]
[1733844782765,6.20571173,213.06,212.9,37.3510256]
[1733844783011,6.20571173,213.08,213.03,37.3510256]
[1733844783168,6.62993705,213.29,212.93,0.12549]
[1733844783169,6.20571173,213.14,213.07,37.3510256]
[1733844783370,6.20571173,213.16,213.11,37.3510256]
[1733844783583,6.20571173,213.21,213.15,37.3510256]
[1733844783800,6.20571173,213.24,213.16,0.3468725]
[1733844783971,6.20571173,213.24,213.06,11.7336]
[1733844783972,6.20571173,213.12,213.08,20.0]
[1733844784369,6.20571173,213.03,212.98,0.34777261]
[1733844784603,6.20571173,212.97,212.91,37.69927943]
[1733844784778,6.20571173,213.04,212.91,37.3510256]
[1733844785120,6.20571173,213.04,212.99,37.3510256]
[1733844785274,6.20571173,213.07,213.0,0.34821645]
[1733844785477,6.20571173,213.04,213.01,349.3510256]
[1733844785668,0.88029317,213.16,213.01,349.3510256]
[1733844785669,6.20571173,213.02,213.01,312.0]
[1733844785869,58.622,213.23,213.01,349.3510256]
[1733844785870,6.20571173,213.09,213.01,349.3510256]
[1733844786075,6.20571173,213.12,213.06,20.0]
[1733844786300,6.20571173,213.16,213.1,57.3510256]
[1733844786475,6.20571173,213.24,213.17,20.0]
[1733844786671,6.20571173,213.27,213.22,37.3510256]
[1733844786876,6.20571173,213.22,213.2,37.3510256]
[1733844787091,6.20571173,213.22,213.18,37.3510256]
[1733844787316,6.20571173,213.23,213.2,37.3510256]
[1733844787615,6.20571173,213.27,213.22,37.3510256]
[1733844787807,6.20571173,213.23,213.22,37.3510256]
[1733844788014,6.20571173,213.2,213.18,37.3510256]
[1733844788392,6.20571173,213.17,213.16,37.3510256]
[1733844788611,6.20571173,213.13,213.1,37.69818463]
[1733844788796,6.20571173,213.11,213.1,37.3510256]
[1733844789119,6.20571173,213.13,213.1,349.3510256]
[1733844789294,6.20571173,213.13,213.12,37.3510256]
[1733844789614,6.20571173,213.11,213.1,312.0]
[1733844789804,6.20571173,213.11,213.1,349.3510256]
[1733844790212,6.20571173,213.09,213.08,37.3510256]
[1733844790400,6.20571173,213.03,213.02,37.3510256]
[1733844790714,6.20571173,212.99,212.98,37.3510256]
[1733844790919,6.20571173,213.03,212.98,37.3510256]
[1733844791087,6.20571173,213.03,212.92,30.0]
[1733844791088,6.20571173,212.97,212.96,37.3510256]
[1733844791624,6.20571173,212.95,212.94,37.3510256]
[1733844791799,6.20571173,212.95,212.9,12.8047]
[1733844791800,6.20571173,212.98,212.9,12.8047]
[1733844791987,11.7354,213.03,212.86,40.23188486]
[1733844791988,6.20571173,212.87,212.86,40.23188486]
[1733844792193,6.20571173,212.91,212.86,40.23188486]
[1733844792390,6.20571173,212.95,212.89,37.3510256]
[1733844792808,6.20571173,213.0,212.94,37.3510256]
[1733844793011,6.20571173,213.0,212.97,37.3510256]
[1733844793197,6.20571173,212.93,212.91,37.3510256]
[1733844793406,26.7342,213.06,212.91,37.3510256]
[1733844793407,6.20571173,212.95,212.91,37.3510256]
[1733844793605,6.20571173,212.95,212.93,37.3510256]
[1733844793797,6.20571173,212.86,212.85,37.70004849]
[1733844794002,6.20571173,212.94,212.85,37.3510256]
[1733844794197,6.20571173,212.94,212.92,37.3510256]
[1733844794419,6.20571173,212.96,212.92,37.3510256]
[1733844794593,6.20571173,212.9,212.89,37.3510256]
[1733844795025,6.20571173,212.88,212.87,37.3510256]
[1733844795200,6.20571173,212.85,212.84,0.4829435]
[1733844795525,6.20571173,212.9,212.84,0.4829435]
[1733844795733,6.20571173,212.92,212.85,37.3510256]
[1733844795907,6.20571173,212.96,212.91,37.3510256]
[1733844796111,6.20571173,213.01,212.95,37.3510256]
[1733844796418,38.4577,213.15,212.88,37.3510256]
[1733844796419,6.20571173,213.0,212.97,349.3510256]
[1733844796623,6.20571173,212.98,212.97,312.0]
[1733844796825,6.20571173,212.92,212.89,37.3510256]
[1733844797007,6.20571173,212.89,212.84,0.83205093]
[1733844797319,6.20571173,212.89,212.84,0.4829435]
[1733844797522,6.20571173,212.91,212.85,37.3510256]
[1733844797730,6.20571173,212.96,212.89,37.3510256]
[1733844798020,6.20571173,212.92,212.88,37.3510256]
[1733844798193,6.20571173,212.94,212.9,37.69979329]
[1733844798616,6.20571173,212.92,212.9,37.69979329]
[1733844798823,6.20571173,212.9,212.88,37.3510256]
[1733844799018,6.20571173,212.87,212.86,37.3510256]
[1733844799324,6.20571173,212.96,212.86,37.3510256]
[1733844799526,6.20571173,213.03,212.95,37.3510256]
[1733844799709,6.20571173,213.03,212.89,0.12549]
[1733844799710,6.20571173,213.03,212.99,349.3510256]
[1733844800029,6.20571173,213.0,212.99,312.0]
[1733844800318,6.20571173,213.02,212.99,20.0]
[1733844800541,6.20571173,213.02,213.0,20.0]
[1733844800830,6.20571173,213.04,213.01,20.0]
[1733844801007,6.20571173,213.0,212.97,37.3510256]
[1733844801203,6.20571173,213.0,212.99,20.0]
[1733844801624,6.20571173,213.0,212.99,57.3510256]
[1733844801930,6.20571173,213.08,212.99,57.69943023]
[1733844802129,6.20571173,213.13,213.09,20.0]
[1733844802432,6.20571173,213.08,213.07,37.69859926]
[1733844802608,6.20571173,213.08,213.07,37.3510256]
[1733844803431,6.20571173,213.08,213.07,349.3510256]
[1733844803734,6.20571173,213.09,213.07,349.3510256]
[1733844803903,6.20571173,213.06,213.05,37.3510256]
[1733844804110,6.20571173,213.02,213.01,12.0103]
[1733844804305,6.20571173,213.02,212.99,37.3510256]
[1733844804306,6.20571173,213.0,212.99,37.3510256]
[1733844804501,11.7291,213.15,212.91,12.0103]
[1733844804502,6.20571173,212.96,212.93,37.3510256]
[1733844804901,6.20571173,212.92,212.91,49.3613256]
[1733844805320,15.88032273,213.05,212.86,0.34869589]
[1733844805321,6.20571173,212.89,212.88,37.3510256]
[1733844806078,6.20571173,212.95,212.88,37.3510256]
[1733844806342,6.20571173,212.92,212.91,37.3510256]
[1733844806550,6.20571173,212.9,212.87,37.3510256]
[1733844806851,23.4646,213.09,212.84,0.4829435]
[1733844806852,6.20571173,212.86,212.84,0.4829435]
[1733844807145,6.20571173,212.9,212.84,37.8339691]
[1733844807301,6.20571173,212.92,212.89,37.3510256]
[1733844807505,6.20571173,212.87,212.85,37.3510256]
[1733844807741,6.20571173,212.85,212.84,0.4829435]
[1733844808048,6.20571173,212.9,212.84,0.83258333]
[1733844808341,6.20571173,212.86,212.85,37.3510256]
[1733844808705,6.20571173,212.86,212.84,0.4829435]
[1733844809241,6.20571173,212.78,212.69,2.05055492]
[1733844809540,0.88079136,212.85,212.69,39.40158052]
[1733844809541,6.20571173,212.71,212.69,39.40158052]
[1733844809754,6.20571173,212.75,212.7,37.62396775]
[1733844809969,6.20571173,212.79,212.73,37.62396775]
[1733844810259,6.20571173,212.72,212.7,37.62396775]
[1733844810559,6.20571173,212.74,212.7,37.62396775]
[1733844811231,6.20571173,212.69,212.68,37.9745797]
[1733844811445,11.7448,212.86,212.61,32.5861]
[1733844811446,6.20571173,212.67,212.66,37.62396775]
[1733844811864,6.20571173,212.71,212.67,0.12549]
[1733844812159,6.20571173,212.71,212.7,37.62396775]
[1733844812454,6.20571173,212.77,212.71,0.12549]
[1733844812665,6.20571173,212.81,212.76,37.62396775]
[1733844812833,6.20571173,212.85,212.8,37.62396775]
[1733844813032,6.20571173,212.85,212.74,30.0]
[1733844813033,6.20571173,212.83,212.82,37.62396775]
[1733844813341,6.20571173,212.83,212.82,349.62396775]
[1733844813722,6.20571173,212.85,212.82,312.0]
[1733844813922,26.7387,212.97,212.82,349.62396775]
[1733844813923,6.20571173,212.83,212.82,349.62396775]
[1733844814155,6.20571173,212.83,212.82,37.62396775]
[1733844814362,6.20571173,212.84,212.82,37.62396775]
[1733844814534,0.88064566,212.96,212.86,20.0]
[1733844814737,15.0,213.19,212.98,20.0]
[1733844814954,0.87986601,213.18,213.12,37.62396775]
[1733844815269,16.7772,213.26,213.14,37.62396775]
[1733844815434,0.87941232,213.25,213.18,37.62396775]
[1733844815623,15.87936948,213.24,213.12,37.62396775]
[1733844815829,0.87956584,213.23,213.12,37.62396775]
[1733844816131,15.0,213.2,213.1,37.62396775]
[1733844816343,0.87966245,213.19,213.06,37.62396775]
[1733844816653,30.0,213.18,213.06,37.62396775]
[1733844816953,11.7244,213.23,213.04,37.62396775]
[1733844816954,15.0,213.16,213.04,37.62396775]
[1733844817249,11.7244,213.23,213.02,37.62396775]